fUSD/lending_fUSD_20260621
["ID","MTS","AMOUNT","RATE_DAILY","PERIOD"]
[425925430,1782036676000,-500.0,0.00029041,2]
[425925415,1782036676000,-543.45,0.00029041,2]
[425925441,1782036676000,-500.0,0.00029041,2]
[425925465,1782036676000,-500.0,0.00029041,2]
[425925407,1782036676000,-500.0,0.00029041,2]
[425925404,1782036676000,-500.0,0.00029041,2]
[425925405,1782036676000,-500.0,0.00029041,2]
[425925406,1782036676000,-662.54,0.00029041,2]
[425925409,1782036676000,-500.0,0.00029041,2]
[425925417,1782036676000,-500.0,0.00029041,2]
[425925418,1782036676000,-500.0,0.00029041,2]
[425925408,1782036676000,-500.0,0.00029041,2]
[425925410,1782036676000,-500.0,0.00029041,2]
[425925411,1782036676000,-500.0,0.00029041,2]
[425925413,1782036676000,-1087.51,0.00029041,2]
[425925431,1782036676000,-500.0,0.00029041,2]
[425925416,1782036676000,-500.0,0.00029041,2]
[425925414,1782036676000,-500.0,0.00029041,2]
[425925422,1782036676000,-500.0,0.00029041,2]
[425925424,1782036676000,-500.0,0.00029041,2]
[425925427,1782036676000,-500.0,0.00029041,2]
[425925426,1782036676000,-500.0,0.00029041,2]
[425925419,1782036676000,-550.18,0.00029041,2]
[425925423,1782036676000,-500.0,0.00029041,2]
[425925421,1782036676000,-500.0,0.00029041,2]
[425925425,1782036676000,-500.0,0.00029041,2]
[425925428,1782036676000,-500.0,0.00029041,2]
[425925420,1782036676000,-500.0,0.00029041,2]
[425925429,1782036676000,-1089.19,0.00029041,2]
[425925412,1782036676000,-500.0,0.00029041,2]
[425925459,1782036676000,-500.0,0.00029041,2]
[425925468,1782036676000,-835.47,0.00029041,2]
[425925460,1782036676000,-500.0,0.00029041,2]
[425925497,1782036676000,-500.0,0.00029041,2]
[425925502,1782036676000,-500.0,0.00029041,2]
[425925499,1782036676000,-500.0,0.00029041,2]
[425925501,1782036676000,-500.0,0.00029041,2]
[425925496,1782036676000,-3192.54,0.00029041,2]
[425925495,1782036676000,-500.0,0.00029041,2]
[425925500,1782036676000,-500.0,0.00029041,2]
[425925498,1782036676000,-512.62,0.00029041,2]
[425925514,1782036676000,-500.0,0.00029041,2]
[425925504,1782036676000,-500.0,0.00029041,2]
[425925503,1782036676000,-500.0,0.00029041,2]
[425925505,1782036676000,-500.0,0.00029041,2]
[425925494,1782036676000,-682.66,0.00029041,2]
[425925507,1782036676000,-687.18,0.00029041,2]
[425925509,1782036676000,-641.52,0.00029041,2]
[425925508,1782036676000,-694.81,0.00029041,2]
[425925510,1782036676000,-500.0,0.00029041,2]
[425925512,1782036676000,-500.0,0.00029041,2]
[425925511,1782036676000,-500.0,0.00029041,2]
[425925458,1782036676000,-527.33537068,0.00029041,2]
[425925515,1782036676000,-500.0,0.00029041,2]
[425925517,1782036676000,-516.71,0.00029041,2]
[425925520,1782036676000,-1198.9,0.00029041,2]
[425925518,1782036676000,-553.65,0.00029041,2]
[425925519,1782036676000,-500.0,0.00029041,2]
[425925516,1782036676000,-599.45,0.00029041,2]
[425925506,1782036676000,-500.0,0.00029041,2]
[425925491,1782036676000,-500.0,0.00029041,2]
[425925513,1782036676000,-693.69,0.00029041,2]
[425925493,1782036676000,-500.0,0.00029041,2]
[425925492,1782036676000,-500.0,0.00029041,2]
[425925464,1782036676000,-671.07,0.00029041,2]
[425925461,1782036676000,-500.0,0.00029041,2]
[425925463,1782036676000,-1101.32,0.00029041,2]
[425925474,1782036676000,-500.0,0.00029041,2]
[425925473,1782036676000,-500.0,0.00029041,2]
[425925472,1782036676000,-500.0,0.00029041,2]
[425925470,1782036676000,-555.47,0.00029041,2]
[425925471,1782036676000,-500.0,0.00029041,2]
[425925469,1782036676000,-500.0,0.00029041,2]
[425925475,1782036676000,-500.0,0.00029041,2]
[425925479,1782036676000,-500.0,0.00029041,2]
[425925477,1782036676000,-500.0,0.00029041,2]
[425925462,1782036676000,-500.0,0.00029041,2]
[425925476,1782036676000,-500.0,0.00029041,2]
[425925478,1782036676000,-500.0,0.00029041,2]
[425925482,1782036676000,-500.0,0.00029041,2]
[425925485,1782036676000,-500.0,0.00029041,2]
[425925486,1782036676000,-500.0,0.00029041,2]
[425925489,1782036676000,-500.0,0.00029041,2]
[425925484,1782036676000,-500.0,0.00029041,2]
[425925487,1782036676000,-500.0,0.00029041,2]
[425925488,1782036676000,-500.0,0.00029041,2]
[425925483,1782036676000,-500.0,0.00029041,2]
[425925480,1782036676000,-673.93,0.00029041,2]
[425925481,1782036676000,-605.32,0.00029041,2]
[425925490,1782036676000,-925.07,0.00029041,2]
[425925542,1782036677000,-500.0,0.00029041,2]
[425925547,1782036677000,-205.01843079,0.00029041,2]
[425925549,1782036677000,-500.0,0.00029041,2]
[425925546,1782036677000,-500.0,0.00029041,2]
[425925548,1782036677000,-686.88,0.00029041,2]
[425925550,1782036677000,-500.0,0.00029041,2]
[425925551,1782036677000,-768.15,0.00029041,2]
[425925552,1782036677000,-500.0,0.00029041,2]
[425925553,1782036677000,-519.87,0.00029041,2]
[425925559,1782036677000,-500.0,0.00029041,2]
[425925555,1782036677000,-500.0,0.00029041,2]
[425925560,1782036677000,-500.0,0.00029041,2]
[425925556,1782036677000,-281.95445592,0.00029041,2]
[425925558,1782036677000,-635.0,0.00029041,2]
[425925561,1782036677000,-500.0,0.00029041,2]
[425925557,1782036677000,-500.0,0.00029041,2]
[425925554,1782036677000,-500.0,0.00029041,2]
[425925563,1782036677000,-500.0,0.00029041,2]
[425925544,1782036677000,-500.0,0.00029041,2]
[425925565,1782036677000,-500.0,0.00029041,2]
[425925562,1782036677000,-500.0,0.00029041,2]
[425925543,1782036677000,-500.0,0.00029041,2]
[425925536,1782036677000,-561.51,0.00029041,2]
[425925545,1782036677000,-500.0,0.00029041,2]
[425925567,1782036677000,-1360.88,0.00029041,2]
[425925521,1782036677000,-500.0,0.00029041,2]
[425925522,1782036677000,-500.0,0.00029041,2]
[425925523,1782036677000,-500.0,0.00029041,2]
[425925526,1782036677000,-500.0,0.00029041,2]
[425925524,1782036677000,-500.0,0.00029041,2]
[425925525,1782036677000,-421.72926736,0.00029041,2]
[425925527,1782036677000,-500.0,0.00029041,2]
[425925529,1782036677000,-845.41,0.00029041,2]
[425925541,1782036677000,-500.0,0.00029041,2]
[425925531,1782036677000,-500.0,0.00029041,2]
[425925538,1782036677000,-500.0,0.00029041,2]
[425925528,1782036677000,-546.86545964,0.00029041,2]
[425925535,1782036677000,-583.47,0.00029041,2]
[425925530,1782036677000,-500.0,0.00029041,2]
[425925539,1782036677000,-426.7669005,0.00029041,2]
[425925537,1782036677000,-500.0,0.00029041,2]
[425925532,1782036677000,-500.0,0.00029041,2]
[425925534,1782036677000,-500.0,0.00029041,2]
[425925540,1782036677000,-500.0,0.00029041,2]
[425925533,1782036677000,-500.0,0.00029041,2]
[425925570,1782036677000,-500.0,0.00029041,2]
[425925580,1782036677000,-684.54,0.00029041,2]
[425925564,1782036677000,-592.75,0.00029041,2]
[425925596,1782036677000,-500.0,0.00029041,2]
[425925595,1782036677000,-910.29,0.00029041,2]
[425925594,1782036677000,-500.0,0.00029041,2]
[425925598,1782036677000,-500.0,0.00029041,2]
[425925597,1782036677000,-500.0,0.00029041,2]
[425925608,1782036677000,-500.0,0.00029041,2]
[425925600,1782036677000,-500.0,0.00029041,2]
[425925602,1782036677000,-500.0,0.00029041,2]
[425925601,1782036677000,-500.0,0.00029041,2]
[425925591,1782036677000,-1253.56,0.00029041,2]
[425925599,1782036677000,-763.08,0.00029041,2]
[425925606,1782036677000,-974.4,0.00029041,2]
[425925603,1782036677000,-500.0,0.00029041,2]
[425925607,1782036677000,-500.0,0.00029041,2]
[425925609,1782036677000,-500.0,0.00029041,2]
[425925611,1782036677000,-1321.35,0.00029041,2]
[425925612,1782036677000,-500.0,0.00029041,2]
[425925613,1782036677000,-500.0,0.00029041,2]
[425925610,1782036677000,-947.58,0.00029041,2]
[425925566,1782036677000,-500.0,0.00029041,2]
[425925605,1782036677000,-598.45,0.00029041,2]
[425925592,1782036677000,-616.78032856,0.00029041,2]
[425925604,1782036677000,-500.0,0.00029041,2]
[425925593,1782036677000,-500.0,0.00029041,2]
[425925590,1782036677000,-500.0,0.00029041,2]
[425925571,1782036677000,-1235.09,0.00029041,2]
[425925572,1782036677000,-770.0,0.00029041,2]
[425925573,1782036677000,-500.0,0.00029041,2]
[425925569,1782036677000,-500.0,0.00029041,2]
[425925585,1782036677000,-500.0,0.00029041,2]
[425925575,1782036677000,-500.0,0.00029041,2]
[425925574,1782036677000,-500.0,0.00029041,2]
[425925576,1782036677000,-500.0,0.00029041,2]
[425925578,1782036677000,-500.0,0.00029041,2]
[425925568,1782036677000,-500.0,0.00029041,2]
[425925579,1782036677000,-500.0,0.00029041,2]
[425925614,1782036677000,-509.77,0.00029041,2]
[425925582,1782036677000,-638.76,0.00029041,2]
[425925581,1782036677000,-779.55,0.00029041,2]
[425925583,1782036677000,-653.61,0.00029041,2]
[425925584,1782036677000,-500.0,0.00029041,2]
[425925586,1782036677000,-500.0,0.00029041,2]
[425925587,1782036677000,-503.72,0.00029041,2]
[425925589,1782036677000,-2356.71,0.00029041,2]
[425925588,1782036677000,-500.0,0.00029041,2]
[425925577,1782036677000,-500.0,0.00029041,2]
[425925646,1782036678000,-5268.44,0.00029041,2]
[425925651,1782036678000,-935.79,0.00029041,2]
[425925650,1782036678000,-4806.58,0.00029041,2]
[425925648,1782036678000,-524.63,0.00029041,2]
[425925652,1782036678000,-500.0,0.00029041,2]
[425925644,1782036678000,-1933.49,0.00029041,2]
[425925647,1782036678000,-500.0,0.00029041,2]
[425925645,1782036678000,-834.65,0.00029041,2]
[425925655,1782036678000,-4809.24,0.00029041,2]
[425925643,1782036678000,-602.26273433,0.00029041,2]
[425925649,1782036678000,-1119.73,0.00029041,2]
[425925656,1782036678000,-648.35,0.00029041,2]
[425925663,1782036678000,-500.0,0.00029041,2]
[425925654,1782036678000,-500.0,0.00029041,2]
[425925653,1782036678000,-951.62,0.00029041,2]
[425925657,1782036678000,-168.64796585,0.00029041,2]
[425925659,1782036678000,-500.0,0.00029041,2]
[425925661,1782036678000,-203.40784959,0.00029041,2]
[425925662,1782036678000,-292.07092171,0.00029041,2]
[425925660,1782036678000,-500.0,0.00029041,2]
[425925669,1782036678000,-500.0,0.00029041,2]
[425925670,1782036678000,-500.0,0.00029041,2]
[425925664,1782036678000,-500.0,0.00029041,2]
[425925665,1782036678000,-500.0,0.00029041,2]
[425925658,1782036678000,-4567.55,0.00029041,2]
[425925642,1782036678000,-969.73,0.00029041,2]
[425925615,1782036678000,-1097.22,0.00029041,2]
[425925641,1782036678000,-3216.01,0.00029041,2]
[425925621,1782036678000,-500.0,0.00029041,2]
[425925620,1782036678000,-500.0,0.00029041,2]
[425925619,1782036678000,-500.0,0.00029041,2]
[425925618,1782036678000,-500.0,0.00029041,2]
[425925666,1782036678000,-643.8,0.00029041,2]
[425925616,1782036678000,-500.0,0.00029041,2]
[425925617,1782036678000,-500.0,0.00029041,2]
[425925623,1782036678000,-500.0,0.00029041,2]
[425925633,1782036678000,-675.07,0.00029041,2]
[425925634,1782036678000,-164.1897827,0.00029041,2]
[425925622,1782036678000,-500.0,0.00029041,2]
[425925624,1782036678000,-500.0,0.00029041,2]
[425925625,1782036678000,-500.0,0.00029041,2]
[425925627,1782036678000,-500.0,0.00029041,2]
[425925626,1782036678000,-500.0,0.00029041,2]
[425925631,1782036678000,-500.0,0.00029041,2]
[425925630,1782036678000,-1273.89,0.00029041,2]
[425925629,1782036678000,-500.0,0.00029041,2]
[425925632,1782036678000,-956.37,0.00029041,2]
[425925628,1782036678000,-500.0,0.00029041,2]
[425925635,1782036678000,-500.0,0.00029041,2]
[425925640,1782036678000,-500.0,0.00029041,2]
[425925638,1782036678000,-559.83,0.00029041,2]
[425925636,1782036678000,-3565.25,0.00029041,2]
[425925639,1782036678000,-500.0,0.00029041,2]
[425925637,1782036678000,-849.95,0.00029041,2]
[425925668,1782036678000,-500.0,0.00029041,2]
[425925674,1782036678000,-514.9475158,0.00029041,2]
[425925672,1782036678000,-500.0,0.00029041,2]
[425925700,1782036678000,-500.0,0.00029041,2]
[425925702,1782036678000,-500.0,0.00029041,2]
[425925704,1782036678000,-500.0,0.00029041,2]
[425925706,1782036678000,-500.0,0.00029041,2]
[425925703,1782036678000,-500.0,0.00029041,2]
[425925701,1782036678000,-500.0,0.00029041,2]
[425925705,1782036678000,-500.0,0.00029041,2]
[425925709,1782036678000,-500.0,0.00029041,2]
[425925710,1782036678000,-500.0,0.00029041,2]
[425925714,1782036678000,-500.0,0.00029041,2]
[425925715,1782036678000,-547.39,0.00029041,2]
[425925712,1782036678000,-500.0,0.00029041,2]
[425925711,1782036678000,-617.85,0.00029041,2]
[425925713,1782036678000,-500.0,0.00029041,2]
[425925716,1782036678000,-602.27,0.00029041,2]
[425925717,1782036678000,-637.81,0.00029041,2]
[425925667,1782036678000,-497.84543146,0.00029041,2]
[425925718,1782036678000,-547.19,0.00029041,2]
[425925721,1782036678000,-500.0,0.00029041,2]
[425925724,1782036678000,-782.44,0.00029041,2]
[425925720,1782036678000,-582.62,0.00029041,2]
[425925722,1782036678000,-500.0,0.00029041,2]
[425925723,1782036678000,-500.0,0.00029041,2]
[425925726,1782036678000,-500.0,0.00029041,2]
[425925725,1782036678000,-8596.43,0.00029041,2]
[425925698,1782036678000,-6132.74,0.00029041,2]
[425925699,1782036678000,-500.0,0.00029041,2]
[425925719,1782036678000,-500.0,0.00029041,2]
[425925696,1782036678000,-500.0,0.00029041,2]
[425925708,1782036678000,-500.0,0.00029041,2]
[425925682,1782036678000,-500.0,0.00029041,2]
[425925671,1782036678000,-500.0,0.00029041,2]
[425925679,1782036678000,-500.0,0.00029041,2]
[425925675,1782036678000,-500.0,0.00029041,2]
[425925673,1782036678000,-500.0,0.00029041,2]
[425925681,1782036678000,-2467.13,0.00029041,2]
[425925680,1782036678000,-918.31,0.00029041,2]
[425925676,1782036678000,-339.24597418,0.00029041,2]
[425925677,1782036678000,-835.73,0.00029041,2]
[425925683,1782036678000,-500.0,0.00029041,2]
[425925685,1782036678000,-500.0,0.00029041,2]
[425925678,1782036678000,-500.0,0.00029041,2]
[425925688,1782036678000,-500.0,0.00029041,2]
[425925707,1782036678000,-500.78,0.00029041,2]
[425925690,1782036678000,-500.0,0.00029041,2]
[425925697,1782036678000,-494.12,0.00029041,2]
[425925693,1782036678000,-500.0,0.00029041,2]
[425925695,1782036678000,-500.0,0.00029041,2]
[425925684,1782036678000,-500.0,0.00029041,2]
[425925694,1782036678000,-500.0,0.00029041,2]
[425925687,1782036678000,-500.0,0.00029041,2]
[425925686,1782036678000,-500.0,0.00029041,2]
[425925691,1782036678000,-500.0,0.00029041,2]
[425925689,1782036678000,-500.0,0.00029041,2]
[425925692,1782036678000,-627.53,0.00029041,2]
[425925748,1782036679000,-1121.32,0.00029041,2]
[425925752,1782036679000,-508.58,0.00029041,2]
[425925743,1782036679000,-11591.31,0.00029041,2]
[425925750,1782036679000,-560.95,0.00029041,2]
[425925755,1782036679000,-500.0,0.00029041,2]
[425925754,1782036679000,-500.0,0.00029041,2]
[425925753,1782036679000,-3462.02,0.00029041,2]
[425925758,1782036679000,-500.0,0.00029041,2]
[425925756,1782036679000,-500.0,0.00029041,2]
[425925757,1782036679000,-503.69,0.00029041,2]
[425925760,1782036679000,-4893.3,0.00029041,2]
[425925762,1782036679000,-500.0,0.00029041,2]
[425925763,1782036679000,-752.17,0.00029041,2]
[425925759,1782036679000,-4407.46,0.00029041,2]
[425925741,1782036679000,-4142.16,0.00029041,2]
[425925751,1782036679000,-500.0,0.00029041,2]
[425925742,1782036679000,-500.0,0.00029041,2]
[425925727,1782036679000,-500.0,0.00029041,2]
[425925747,1782036679000,-737.59,0.00029041,2]
[425925761,1782036679000,-7434.82,0.00029041,2]
[425925730,1782036679000,-589.86,0.00029041,2]
[425925728,1782036679000,-4513.58,0.00029041,2]
[425925731,1782036679000,-8344.59,0.00029041,2]
[425925729,1782036679000,-741.55,0.00029041,2]
[425925733,1782036679000,-4904.56,0.00029041,2]
[425925732,1782036679000,-419.0295341,0.00029041,2]
[425925746,1782036679000,-500.0,0.00029041,2]
[425925736,1782036679000,-4234.92,0.00029041,2]
[425925739,1782036679000,-500.0,0.00029041,2]
[425925737,1782036679000,-500.0,0.00029041,2]
[425925738,1782036679000,-500.0,0.00029041,2]
[425925735,1782036679000,-544.03,0.00029041,2]
[425925744,1782036679000,-529.95,0.00029041,2]
[425925740,1782036679000,-5549.57,0.00029041,2]
[425925745,1782036679000,-500.0,0.00029041,2]
[425925734,1782036679000,-518.81,0.00029041,2]
[425925766,1782036679000,-500.0,0.00029041,2]
[425925749,1782036679000,-500.0,0.00029041,2]
[425925767,1782036679000,-500.0,0.00029041,2]
[425925787,1782036679000,-793.21,0.00029041,2]
[425925786,1782036679000,-4116.89,0.00029041,2]
[425925788,1782036679000,-500.0,0.00029041,2]
[425925789,1782036679000,-3648.64,0.00029041,2]
[425925793,1782036679000,-574.59,0.00029041,2]
[425925791,1782036679000,-3690.26,0.00029041,2]
[425925790,1782036679000,-7006.76,0.00029041,2]
[425925784,1782036679000,-762.22,0.00029041,2]
[425925792,1782036679000,-904.85,0.00029041,2]
[425925796,1782036679000,-2754.08,0.00029041,2]
[425925794,1782036679000,-694.24,0.00029041,2]
[425925800,1782036679000,-4469.05,0.00029041,2]
[425925798,1782036679000,-6967.46,0.00029041,2]
[425925797,1782036679000,-500.0,0.00029041,2]
[425925802,1782036679000,-58770.661065,0.00029041,2]
[425925764,1782036679000,-4920.34,0.00029041,2]
[425925795,1782036679000,-513.04,0.00029041,2]
[425925785,1782036679000,-1130.75,0.00029041,2]
[425925799,1782036679000,-500.0,0.00029041,2]
[425925782,1782036679000,-9537.38,0.00029041,2]
[425925783,1782036679000,-9148.39,0.00029041,2]
[425925770,1782036679000,-8802.4,0.00029041,2]
[425925765,1782036679000,-614.43,0.00029041,2]
[425925771,1782036679000,-3641.08,0.00029041,2]
[425925768,1782036679000,-6191.78,0.00029041,2]
[425925774,1782036679000,-500.0,0.00029041,2]
[425925776,1782036679000,-8686.83,0.00029041,2]
[425925772,1782036679000,-500.0,0.00029041,2]
[425925769,1782036679000,-504.3,0.00029041,2]
[425925773,1782036679000,-1000.0,0.00029041,2]
[425925777,1782036679000,-500.0,0.00029041,2]
[425925778,1782036679000,-500.0,0.00029041,2]
[425925780,1782036679000,-3642.96,0.00029041,2]
[425925801,1782036679000,-673.1,0.00029041,2]
[425925779,1782036679000,-15685.64,0.00029041,2]
[425925775,1782036679000,-500.0,0.00029041,2]
[425925781,1782036679000,-500.0,0.00029041,2]
[425925816,1782036680000,-578.58,0.00029041,2]
[425925815,1782036680000,-500.0,0.00029041,2]
[425925818,1782036680000,-5168.02,0.00029041,2]
[425925819,1782036680000,-500.0,0.00029041,2]
[425925823,1782036680000,-372.10589235,0.00029058,2]
[425925821,1782036680000,-500.0,0.00029041,2]
[425925824,1782036680000,-176.08,0.00029125,7]
[425925820,1782036680000,-1012.47,0.00029041,2]
[425925827,1782036680000,-250.0,0.00029129,12]
[425925822,1782036680000,-408.0,0.00029041,2]
[425925817,1782036680000,-2245.52,0.00029041,2]
[425925807,1782036680000,-2750.97,0.00029041,2]
[425925814,1782036680000,-3409.76,0.00029041,2]
[425925812,1782036680000,-10370.49,0.00029041,2]
[425925810,1782036680000,-500.0,0.00029041,2]
[425925811,1782036680000,-6610.19,0.00029041,2]
[425925808,1782036680000,-2177.43,0.00029041,2]
[425925809,1782036680000,-7308.09,0.00029041,2]
[425925806,1782036680000,-500.0,0.00029041,2]
[425925803,1782036680000,-913.0,0.00029041,2]
[425925805,1782036680000,-500.0,0.00029041,2]
[425925804,1782036680000,-500.0,0.00029041,2]
[425925826,1782036680000,-187.32,0.00029127,7]
[425925813,1782036680000,-500.0,0.00029041,2]
[425925828,1782036680000,-221.98,0.00029129,12]
[425925837,1782036680000,-950.76,0.000292,7]
[425925838,1782036680000,-1200.29,0.000292,7]
[425925825,1782036680000,-270.54,0.00029127,7]
[425925852,1782036680000,-57441.87950292,0.00029293,2]
[425925854,1782036680000,-95709.1141388,0.00029315,2]
[425925853,1782036680000,-941.47464104,0.00029315,15]
[425925850,1782036680000,-183.92733603,0.00029291,30]
[425925851,1782036680000,-213.38427012,0.00029293,2]
[425925843,1782036680000,-735.98,0.00029214,2]
[425925841,1782036680000,-735.98,0.00029214,2]
[425925847,1782036680000,-152.27,0.00029232,2]
[425925848,1782036680000,-2000.0,0.0002926,2]
[425925849,1782036680000,-10000.0,0.0002926,2]
[425925846,1782036680000,-150.72,0.00029232,2]
[425925844,1782036680000,-735.98,0.00029214,2]
[425925842,1782036680000,-735.98,0.00029214,2]
[425925831,1782036680000,-472.74,0.00029133,7]
[425925845,1782036680000,-736.07,0.00029214,2]
[425925836,1782036680000,-304.38,0.000292,30]
[425925832,1782036680000,-587.36,0.00029135,7]
[425925829,1782036680000,-307.54,0.00029129,7]
[425925830,1782036680000,-265.36,0.00029131,7]
[425925835,1782036680000,-500.0,0.00029186,2]
[425925834,1782036680000,-500.0,0.00029156,60]
[425925840,1782036680000,-735.98,0.00029214,2]
[425925839,1782036680000,-735.98,0.00029214,2]
[425925833,1782036680000,-3089.63568228,0.00029148,5]
[425925864,1782036681000,-500.0,0.00027396,2]
[425925876,1782036681000,-177.90780237,0.00027845,2]
[425925865,1782036681000,-500.0,0.00027396,2]
[425925871,1782036681000,-500.0,0.00027397,2]
[425925874,1782036681000,-500.0,0.00027671,2]
[425925887,1782036681000,-1820.63,0.00028767,2]
[425925885,1782036681000,-500.0,0.00028493,2]
[425925880,1782036681000,-291.77283641,0.00027945,2]
[425925886,1782036681000,-500.0,0.00028493,2]
[425925875,1782036681000,-500.0,0.00027671,2]
[425925882,1782036681000,-500.0,0.00028219,2]
[425925868,1782036681000,-500.0,0.00027396,2]
[425925879,1782036681000,-500.0,0.00027945,2]
[425925863,1782036681000,-500.0,0.00027396,2]
[425925855,1782036681000,-500.0,0.00027396,2]
[425925870,1782036681000,-500.0,0.00027397,2]
[425925862,1782036681000,-500.0,0.00027396,2]
[425925867,1782036681000,-500.0,0.00027396,2]
[425925872,1782036681000,-500.0,0.00027671,2]
[425925869,1782036681000,-500.0,0.00027397,2]
[425925861,1782036681000,-256.36319471,0.00027396,2]
[425925873,1782036681000,-500.0,0.00027671,2]
[425925859,1782036681000,-12.6841028,0.00027297,10]
[425925857,1782036681000,-250.0,0.00016456,2]
[425925860,1782036681000,-243.63680529,0.00027396,2]
[425925858,1782036681000,-902.3158972,0.00027297,10]
[425925856,1782036681000,-3987.11844937,0.00029315,2]
[425925877,1782036681000,-500.0,0.00027945,2]
[425925866,1782036681000,-500.0,0.00027396,2]
[425925878,1782036681000,-500.0,0.00027945,2]
[425925898,1782036681000,-500.0,0.00029315,2]
[425925884,1782036681000,-1820.63,0.00028493,2]
[425925881,1782036681000,-1820.63,0.00028219,2]
[425925914,1782036681000,-500.0,0.00029315,2]
[425925908,1782036681000,-500.0,0.00029315,2]
[425925912,1782036681000,-500.0,0.00029315,2]
[425925909,1782036681000,-1087.51,0.00029315,2]
[425925910,1782036681000,-560.05309614,0.00029315,2]
[425925906,1782036681000,-500.0,0.00029315,2]
[425925913,1782036681000,-520.10808212,0.00029315,2]
[425925907,1782036681000,-500.0,0.00029315,2]
[425925911,1782036681000,-543.45,0.00029315,2]
[425925902,1782036681000,-662.54,0.00029315,2]
[425925904,1782036681000,-561.83803749,0.00029315,2]
[425925905,1782036681000,-500.0,0.00029315,2]
[425925901,1782036681000,-500.0,0.00029315,2]
[425925915,1782036681000,-550.18,0.00029315,2]
[425925899,1782036681000,-500.0,0.00029315,2]
[425925896,1782036681000,-500.0,0.00029315,2]
[425925895,1782036681000,-500.0,0.00029315,2]
[425925892,1782036681000,-500.0,0.00029041,2]
[425925893,1782036681000,-208689.62391617,0.00029315,2]
[425925897,1782036681000,-500.0,0.00029315,2]
[425925894,1782036681000,-500.0,0.00029315,2]
[425925891,1782036681000,-500.0,0.00029041,2]
[425925890,1782036681000,-1820.63,0.00029041,2]
[425925903,1782036681000,-500.0,0.00029315,2]
[425925900,1782036681000,-500.0,0.00029315,2]
[425925888,1782036681000,-500.0,0.00028767,2]
[425925889,1782036681000,-500.0,0.00028767,2]
[425925883,1782036681000,-500.0,0.00028219,2]
[425925958,1782036682000,-500.0,0.00029315,2]
[425925977,1782036682000,-500.0,0.00029315,2]
[425925954,1782036682000,-500.0,0.00029315,2]
[425925960,1782036682000,-500.0,0.00029315,2]
[425925956,1782036682000,-1101.32,0.00029315,2]
[425925951,1782036682000,-688.76,0.00029315,2]
[425925952,1782036682000,-500.0,0.00029315,2]
[425925947,1782036682000,-500.0,0.00029315,2]
[425925940,1782036682000,-322.39265818,0.00029315,2]
[425925945,1782036682000,-500.0,0.00029315,2]
[425925943,1782036682000,-500.0,0.00029315,2]
[425925953,1782036682000,-500.0,0.00029315,2]
[425925955,1782036682000,-587.22507711,0.00029315,2]
[425925966,1782036682000,-500.0,0.00029315,2]
[425925961,1782036682000,-835.47,0.00029315,2]